Workbook

Sheet Tool
B15: 64.8 | C15: 0.2748034856 | D15: 12.9249946 | E15: 39000 | F15: 4600 | G15: 10
T26: .
D36: ='Input-Output'!P26 -> -1
D38: ='Input-Output'!P25 -> -1
D40: ='Input-Output'!P27 -> -1

Sheet Input-Output (hidden)
B1: Units | C1: Biomass- and-Coal | D1: Coal: CO2 released | E1: Coal: CO2 captured | F1: Coal-to-Gas: CO2 released | G1: Coal-to-Gas: CO2 captured | H1: Energy Efficiency | I1: Natural Gas | J1: Nuclear | K1: Solar Cell | L1: Wind | N1: Totals | S1: Other Assumptions/Calculations | T1: Units | W1: NG Backup calculations | X1: Units | Z1: Backup for Solar | AA1: Backup for wind | AB1: Total
A3: Input | S3: General Assumptions | W3: Capacity Factor
A4: Number of plants | B4: # | C4: 0 | D4: 0 | E4: 0 | F4: 0 | G4: 0 | H4: 0 | I4: 0 | J4: 0 | K4: 0 | L4: 0 | S4: Electricity Goal | T4: TWh | U4: 60 | W4: Best wind/PV Extreme | X4: % | Z4: =$U$13-K98 -> 0.76 | AA4: 0.57
S5: Capital Charge Rate | T5: % | U5: 0.09 | W5: Base | X5: % | Z5: 0.79 | AA5: 0.62
A6: Output | S6: Transmission and Distribution | T6: $/kWh | U6: 0.071 | W6: Worst wind/PV Extreme | X6: % | Z6: 0.82 | AA6: 0.67
S7: Current Residential Electricity Price (Take home) | T7: $/kWh | U7: 0.11
A8: Plants | S8: Percent of electricity generation from new capacity | T8: % | U8: 0.3 | W8: Electricity generated/year | X8: TWh | Z8: =ROUND(I42*8760*Z5/1000000,1) -> 2.6 | AA8: =ROUND(I42*8760*AA5/1000000,1) -> 2.1
A9: NG Backup | B9: # | C9: 0 | D9: 0 | E9: 0 | F9: 0 | G9: 0 | H9: 0 | I9: =AB11 -> 0 | J9: 0 | K9: 0 | L9: 0 | S9: Average Household electricity use | T9: kWh/month | U9: 700 | W9: Electricity backup needed | X9: TWh | Z9: =Z5*K42*8760*K4/1000000 -> 0 | AA9: =AA5*L42*8760*L4/1000000 -> 0 | AB9: =Z9+AA9 -> 0
A10: Total | B10: # | C10: =C4+C9 -> 0 | D10: 0 | E10: 0 | F10: 0 | G10: 0 | H10: 0 | I10: 0 | J10: 0 | K10: 0 | L10: 0 | S10: Current electricity bill | T10: $/month | U10: =U7*U9 -> 77 | W10: % of electricity goal | X10: % | Z10: =Z9/$U$4 -> 0 | AA10: =AA9/$U$4 -> 0 | AB10: =SUM(Z10:AA10) -> 0
S11: Cost of Living fron energy use | T11: % | U11: 0.1 | W11: Number of NG plants for backup | X11: # | Z11: =Z9/Z8 -> 0 | AA11: =AA9/AA8 -> 0 | AB11: =ROUNDUP(Z11+AA11,0) -> 0
A12: Electricity Generated | S12: PM emissions from IECM model are 37% PM10 | T12: % | U12: 0.37
A13: Base | B13: TWh | C13: =C4*C44 -> 0 | D13: 0 | E13: 0 | F13: 0 | G13: 0 | H13: 0 | I13: 0 | J13: 0 | K13: 0 | L13: 0 | S13: Availability of wind and solar | T13: % | U13: 0.9 | W13: NG Backup Cost Calculations
A14: NG Backup | B14: TWh | C14: 0 | D14: 0 | E14: 0 | F14: 0 | G14: 0 | H14: 0 | I14: =AB9 -> 0 | J14: 0 | K14: 0 | L14: 0
A15: Total | B15: TWh | C15: =C14+C13 -> 0 | D15: 0 | E15: 0 | F15: 0 | G15: 0 | H15: 0 | I15: =ROUND(I14+I13,1) -> 0 | J15: =J14+J13 -> 0 | K15: =K14+K13 -> 0 | L15: =L14+L13 -> 0 | N15: =SUM(C15:L15) -> 0 | W15: Annual Electricity Production
C16: =C15&" TWh" -> 0 TWh | D16: =D15&" TWh" -> 0 TWh | E16: 0 TWh | F16: 0 TWh | G16: 0 TWh | H16: 0 TWh | I16: 0 TWh | J16: 0 TWh | K16: 0 TWh | L16: 0 TWh | N16: 0 TWh | S16: Original Plan Calculations | W16: Best wind/PV Extreme | X16: kWh/kW | Z16: =Z4*8760 -> 6657.6 | AA16: 4993.2
W17: Base | X17: kWh/kW | Z17: 6920.4 | AA17: 5431.2
A18: Percent of Electricity Goal | S18: CO2 emissions for elec goal | T18: kg | U18: =SUMPRODUCT(C39:L39,C47:L47)*U4 -> 2.776290118e+10 | W18: Worst wind/PV Extreme | X18: kWh/kW | Z18: 7183.2 | AA18: 5869.2
A19: Base | B19: % | C19: =C13/$U$4 -> 0 | D19: 0 | E19: 0 | F19: 0 | G19: 0 | H19: 0 | I19: 0 | J19: 0 | K19: 0 | L19: 0 | S19: Water Use for elec goal | T19: Pools/year | U19: =ROUND(SUMPRODUCT(C39:L39,C49:L49)*U4,-3) -> 56000
A20: NG Backup | B20: % | I20: =I14/$U$4 -> 0 | S20: Land use for elec goal | T20: football fields | U20: =ROUND(SUMPRODUCT(C39:L39,C48:L48)*U4,-2) -> 3500 | W20: Annual Fuel Expenses
A21: Total | B21: % | C21: =SUM(C19:C20) -> 0 | D21: 0 | E21: 0 | F21: 0 | G21: 0 | H21: 0 | I21: 0 | J21: 0 | K21: 0 | L21: 0 | N21: =SUM(C21:L21) -> 0 | S21: Health costs for elec goal | T21: $Millions | U21: =ROUND(SUMPRODUCT(C39:L39,C50:L50)*U4/1000000,-1) -> 830 | W21: Best wind/PV Extreme | X21: $/kW | Z21: =($I88/1000000)*$I93*Z16 -> 179.5954176 | AA21: 134.6965632
W22: Base | X22: $/kW | Z22: 404.4835392 | AA22: 317.4427776
A23: Impacts | P23: % Change from original plan | S23: Monthly electric bill increase | U23: Origin Plan | W23: Worst wind/PV Extreme | X23: $/kW | Z23: 839.6873472 | AA23: 686.0860032
A24: CO2 emissions (% of original plan) | B24: % | C24: =(C15*C47)/$U$18 -> 0 | D24: 0 | E24: 0 | F24: 0 | G24: 0 | H24: 0 | I24: 0 | J24: 0 | K24: 0 | L24: 0 | N24: =SUM(C24:L24) -> 0
A25: Land use | B25: football fields | C25: =C15*C48 -> 0 | D25: 0 | E25: 0 | F25: 0 | G25: 0 | H25: 0 | I25: 0 | J25: 0 | K25: 0 | L25: 0 | N25: =ROUNDUP(SUM(C25:L25),-2) -> 0 | P25: =(N25-U20)/U20 -> -1 | S25: Best | T25: $/kWh | U25: =U28/700 -> 0.007652070532 | W25: LCOE
A26: Water use | B26: Pools/yr | C26: =C15*C49 -> 0 | D26: 0 | E26: 0 | F26: 0 | G26: 0 | H26: 0 | I26: 0 | J26: 0 | K26: 0 | L26: 0 | N26: =ROUNDUP(SUM(C26:L26),-3) -> 0 | P26: =(N26-$U$19)/$U$19 -> -1 | S26: Base | T26: $/kWh | U26: =U29/700 -> 0.01344197324 | W26: Best wind/PV Extreme | X26: $/kWh | Z26: =($I$114+Z21)/Z16 -> 0.04448177911 | AA26: 0.05031703881
A27: Health costs | B27: $Millions | C27: =C15*C50/1000000 -> 0 | D27: 0 | E27: 0 | F27: 0 | G27: 0 | H27: 0 | I27: 0 | J27: 0 | K27: 0 | L27: 0 | N27: =ROUNDUP(SUM(C27:L27),-1) -> 0 | P27: =(N27-U21)/U21 -> -1 | S27: Worst | T27: $/kWh | U27: 0.02551102343 | W27: Base | X27: $/kWh | Z27: 0.07528900269 | AA27: 0.07990669697
S28: Best | T28: $ | U28: =SUMPRODUCT($C$39:$L$39,C133:L133)*$U$9 -> 5.356449372 | W28: Worst wind/PV Extreme | X28: $/kWh | Z28: 0.1331208684 | AA28: 0.1367533017
A29: Increased electricity bill cost | N29: Your Combination | O29: cost/kWh | P29: % increase from current | S29: Base | T29: $ | U29: =SUMPRODUCT($C$39:$L$39,C134:L134)*$U$9 -> 9.409381266
A30: Best Extreme | B30: $ | C30: =C133*C$19*$U$9 -> 0 | D30: 0 | E30: 0 | F30: 0 | G30: 0 | H30: 0 | I30: =I133*I$19*$U$9+AB47 -> 0 | J30: =J133*J$19*$U$9 -> 0 | K30: 0 | L30: 0 | N30: =SUM(C30:L30) -> 0 | O30: =N30/700 -> 0 | S30: Worst | T30: $ | U30: =SUMPRODUCT($C$39:$L$39,C135:L135)*$U$9 -> 17.8577164 | W30: LCOE+T&D
A31: Base | B31: $ | C31: 0 | D31: 0 | E31: 0 | F31: 0 | G31: 0 | H31: 0 | I31: =I134*I$19*$U$9+AB48 -> 0 | J31: 0 | K31: 0 | L31: 0 | N31: =SUM(C31:L31) -> 0 | O31: =N31/700 -> 0 | P31: =N31/U10 -> 0 | W31: Best wind/PV Extreme | X31: $/kWh | Z31: =Z26+$U$6 -> 0.1154817791 | AA31: 0.1213170388
A32: Worst Extreme | B32: $ | C32: 0 | D32: 0 | E32: 0 | F32: 0 | G32: 0 | H32: 0 | I32: =I135*I$19*$U$9+AB49 -> 0 | J32: 0 | K32: 0 | L32: 0 | N32: =SUM(C32:L32) -> 0 | O32: =N32/700 -> 0 | S32: Energy Efficiency Assumptions | W32: Base | X32: $/kWh | Z32: 0.1462890027 | AA32: 0.150906697
P33: Cost Of living increase | S33: Energy Efficiency supply curve - tipping point | T33: % of electricity saved | U33: 0.15 | W33: Worst wind/PV Extreme | X33: $/kWh | Z33: 0.2041208684 | AA33: 0.2077533017
P34: =P31*U11 -> 0 | S34: ="less than " &U33 -> less than 0.15 | T34: multiplier | U34: =2/15 -> 0.1333333333
S35: ="greater than " &U33 -> greater than 0.15 | T35: multiplier | U35: 3 | W35: Increase in LCOE from current
S36: =S35 -> greater than 0.15 | T36: shift ($/kWh) | U36: 0.41 | W36: Best wind/PV Extreme | X36: $/kWh | Z36: =Z31*$U$8+$U$7*(1-$U$8)-$U$7 -> 0.001644533733 | AA36: 0.003395111644
A37: Assumptions and Calculations | W37: Base | X37: $/kWh | Z37: 0.01088670081 | AA37: 0.01227200909
W38: Worst wind/PV Extreme | X38: $/kWh | Z38: 0.02823626053 | AA38: 0.0293259905
A39: Original Plan | B39: % | C39: 0 | D39: 0.5 | E39: 0 | F39: 0 | G39: 0 | H39: 0 | I39: 0.14 | J39: 0.35 | K39: 0 | L39: 0.01 | S39: Biomass Assumptions
S40: Percent of Biomass co-fired | T40: % | U40: 0.1 | W40: Increase in electricity bill cost
A41: Basic Plant Info | W41: Best wind/PV Extreme | X41: $ | Z41: =Z36*$U$9*Z$10 -> 0 | AA41: 0
A42: Average Nameplate capacity | B42: MW | C42: 533 | D42: 761 | E42: 761 | F42: 761 | G42: 761 | I42: 381 | J42: 888 | K42: 105 | L42: 205 | S42: Biomass fuel price (demand curve-exponential function based on # of plants) | W42: Base | X42: $ | Z42: 0 | AA42: 0
A43: Capacity Factor | B43: % | C43: 0.75 | D43: 0.75 | E43: 0.75 | F43: 0.75 | G43: 0.75 | I43: 0.75 | J43: 0.9 | K43: 0.11 | L43: 0.28 | S43: # of plants | W43: Worst wind/PV Extreme | X43: $ | Z43: 0 | AA43: 0
A44: Electricity Generation | B44: TWh | C44: =ROUND(C42*8760*C43/1000000,1) -> 3.5 | D44: =ROUND(D42*8760*D43/1000000,1) -> 5 | E44: =ROUND(E42*8760*E43/1000000,1) -> 5 | F44: =ROUND(F42*8760*F43/1000000,1) -> 5 | G44: =ROUND(G42*8760*G43/1000000,1) -> 5 | H44: 0.5 | I44: =ROUND(I42*8760*I43/1000000,1) -> 2.5 | J44: =ROUND(J42*8760*J43/1000000,1) -> 7 | K44: =ROUND(K42*8760*K43/1000000,1) -> 0.1 | L44: =ROUND(L42*8760*L43/1000000,1) -> 0.5 | S44: 1 | T44: $/MMBtu | U44: =2.1314*EXP(0.4812*S44) -> 3.448636863
S45: 2 | T45: $/MMBtu | U45: =2.1314*EXP(0.4812*S45) -> 5.579945676
A46: Impacts per TWh | S46: 3 | T46: $/MMBtu | U46: =2.1314*EXP(0.4812*S46) -> 9.028434996
A47: CO2 emissions | B47: kg/TWh | C47: 779521167.5 | D47: 820548597.3 | E47: 136213788.7 | F47: 849578509 | G47: 92442125.01 | H47: 0 | I47: 374576579.1 | J47: 0 | K47: 0 | L47: 0 | AB47: =Z41+AA41 -> 0
A48: Land Use | B48: football fields/TWh | C48: 1157.346181 | D48: 77.40982994 | E48: 112.5434498 | F48: 77.40982994 | G48: 112.5434498 | H48: 0 | I48: 49.14969165 | J48: 21.67819099 | K48: 78.49000187 | L48: 450.383106 | S48: Reduction in emissions from 10% biomass co-fire w/ PC plants | AB48: =Z42+AA42 -> 0
A49: Water use | B49: olympic pools/yr-TWh | C49: 1136.592 | D49: 1136.592 | E49: 2003.985855 | F49: 1092.56 | G49: 1479.232575 | H49: 0 | I49: 207.7889752 | J49: 957.88 | K49: 6 | L49: 1.6 | S49: CO2 | T49: % | U49: -0.04 | AB49: =Z43+AA43 -> 0
A50: Health costs from air pollution | B50: $/TWh | C50: =SUM(C68:C71) -> 25590190.65 | D50: 27646521.2 | E50: 1882936.029 | F50: 3368315.378 | G50: 650674.9244 | H50: 0 | I50: 140831.1074 | J50: 0 | K50: 0 | L50: 0 | S50: Nox | T50: % | U50: -0.05
S51: SO2 | T51: % | U51: -0.075
A52: Health Cost Calculations | S52: PM | T52: % | U52: -0.075
A54: Emissions
A55: NOx | B55: tons/MWh | C55: =D55*(1+U50) -> 0.00041973375 | D55: 0.000441825 | E55: 0.00071798 | F55: 9.125e-05 | G55: 0.00010215 | H55: 0 | I55: 9.41e-05 | J55: 0 | K55: 0 | L55: 0
A56: SOx | B56: tons/MWh | C56: =D56*(1+U51) -> 0.0024378375 | D56: 0.0026355 | E56: 9.195e-07 | F56: 0.0003198 | G56: 4.203e-05 | H56: 0 | I56: 0 | J56: 0 | K56: 0 | L56: 0
A57: PM (all) | B57: tons/MWh | C57: =D57*(1+U52) -> 6.05875e-05 | D57: 6.55e-05 | E57: 5.435e-05 | F57: 4.733e-06 | G57: 5.49e-06 | H57: 0 | I57: 0 | J57: 0 | K57: 0 | L57: 0
A58: PM10 | B58: tons/MWh | C58: =C57*$U$12 -> 2.2417375e-05 | D58: 2.4235e-05 | E58: 2.01095e-05 | F58: 1.75121e-06 | G58: 2.0313e-06 | H58: 0 | I58: 0 | J58: 0 | K58: 0 | L58: 0
A59: PM2.5 | B59: tons/MWh | C59: =C57*(1-$U$12) -> 3.8170125e-05 | D59: 4.1265e-05 | E59: 3.42405e-05 | F59: 2.98179e-06 | G59: 3.4587e-06 | H59: 0 | I59: 0 | J59: 0 | K59: 0 | L59: 0
A61: Health Damages per ton
A62: NOx emissions | B62: $/ton | C62: 1553.424228 | D62: 1553.424228 | E62: 1553.424228 | F62: 1553.424228 | G62: 1553.424228 | H62: 0 | I62: 1496.61113 | J62: 0 | K62: 0 | L62: 0
A63: SOx emissions | B63: $/ton | C63: 9882.772243 | D63: 9882.772243 | E63: 9882.772243 | F63: 9882.772243 | G63: 9882.772243 | H63: 0 | I63: 10805.48099 | J63: 0 | K63: 0 | L63: 0
A64: PM10 emissions | B64: $/ton | C64: 969.8769212 | D64: 969.8769212 | E64: 969.8769212 | F64: 969.8769212 | G64: 969.8769212 | H64: 0 | I64: 1567.22772 | J64: 0 | K64: 0 | L64: 0
A65: PM2.5 emissions | B65: $/ton | C65: 21583.14138 | D65: 21583.14138 | E65: 21583.14138 | F65: 21583.14138 | G65: 21583.14138 | H65: 0 | I65: 34789.57562 | J65: 0 | K65: 0 | L65: 0
A67: Health Damages per TWh
A68: NOx emissions | B68: $/TWh | C68: =C62*C55*1000000 -> 652024.5766 | D68: 686341.6596 | E68: 1115327.527 | F68: 141749.9608 | G68: 158682.2849 | H68: 0 | I68: 140831.1074 | J68: 0 | K68: 0 | L68: 0
A69: SOx emissions | B69: $/TWh | C69: =C63*C56*1000000 -> 24092592.78 | D69: 26046046.25 | E69: 9087.209078 | F69: 3160510.563 | G69: 415372.9174 | H69: 0 | I69: 0 | J69: 0 | K69: 0 | L69: 0
A70: PM10 emissions | B70: $/TWh | C70: =C64*C58*1000000 -> 21742.09465 | D70: 23504.96719 | E70: 19503.73995 | F70: 1698.458163 | G70: 1970.11099 | H70: 0 | I70: 0 | J70: 0 | K70: 0 | L70: 0
A71: PM2.5 emissions | B71: $/TWh | C71: =C65*C59*1000000 -> 823831.2044 | D71: 890628.3291 | E71: 739017.5525 | F71: 64356.39514 | G71: 74649.61109 | H71: 0 | I71: 0 | J71: 0 | K71: 0 | L71: 0
A73: Cost Assumptions/Calcs
A75: Technology Lifetime | B75: Years | C75: 20 | D75: 20 | E75: 20 | F75: 20 | G75: 20 | H75: 20 | I75: 20 | J75: 20 | K75: 20 | L75: 20
A77: Technology Capital Costs ($2008)
A78: Best Extreme | B78: $/kW | C78: =D78+50 -> 2600 | D78: 2550 | E78: 4000 | F78: 3750 | G78: 4400 | I78: 900 | J78: 5750 | K78: 3500 | L78: 1900
A79: Base | B79: $/kW | C79: =AVERAGE(C78,C80) -> 3050 | D79: =0.5*(D78+D80) -> 2775 | E79: =0.5*(E78+E80) -> 4675 | F79: =0.5*(F78+F80) -> 4075 | G79: =0.5*(G78+G80) -> 4737.5 | I79: =0.5*(I78+I80) -> 1000 | J79: =0.5*(J78+J80) -> 6650 | K79: =0.5*(K78+K80) -> 3750 | L79: =0.5*(L78+L80) -> 2200
A80: Worst Extreme | B80: $/kW | C80: =D80+500 -> 3500 | D80: 3000 | E80: 5350 | F80: 4400 | G80: 5075 | I80: 1100 | J80: 7550 | K80: 4000 | L80: 2500
A82: Technology Non-fixed O&M Costs
A83: Best Extreme | B83: $/kW | C83: =D83+3 -> 23 | D83: 20 | E83: 32 | F83: 26 | G83: 30 | I83: 7 | J83: 71 | K83: 25 | L83: 40
A84: Base | B84: $/kW | C84: =D84+3 -> 23 | D84: 20 | E84: 32 | F84: 26 | G84: 30 | I84: 7 | J84: 71 | K84: 25 | L84: =0.5*(L83+L85) -> 45
A85: Worst Extreme | B85: $/kW | C85: =D85+3 -> 23 | D85: 20 | E85: 32 | F85: 26 | G85: 30 | I85: 7 | J85: 71 | K85: 25 | L85: 50
A87: Fuel Costs
A88: Best Extreme | B88: $/MMBtu | C88: =IF($C$4=2,$U$45, IF($C$4=3,$U$46,$U$44))*0.1+D88*0.9 -> 1.694863686 | D88: 1.5 | E88: 1.5 | F88: 1.5 | G88: 1.5 | I88: 3 | J88: 0.4
A89: Base | B89: $/MMBtu | C89: =IF($C$4=2,$U$45, IF($C$3=3,$U$46,$U$44))*0.1+D89*0.9 -> 2.279863686 | D89: 2.15 | E89: 2.15 | F89: 2.15 | G89: 2.15 | I89: 6.5 | J89: 0.5
A90: Worst Extreme | B90: $/MMBtu | C90: =IF($C$4=2,$U$45, IF($C$3=3,$U$46,$U$44))*0.1+D90*0.9 -> 4.844863686 | D90: 5 | E90: 5 | F90: 5 | G90: 5 | I90: 13 | J90: 0.6
A92: Technology Heat Rate
A93: Best Extreme | B93: Btu/kWh | C93: 10995 | D93: 9200 | E93: 12680 | F93: 8765 | G93: 10781 | I93: =(7196+10788)/2 -> 8992 | J93: 10488
A94: Base | B94: Btu/kWh | C94: 10995 | D94: 9200 | E94: 12680 | F94: 8765 | G94: 10781 | I94: =(7196+10788)/2 -> 8992 | J94: 10488
A95: Worst Extreme | B95: Btu/kWh | C95: 10995 | D95: 9200 | E95: 12680 | F95: 8765 | G95: 10781 | I95: =(7196+10788)/2 -> 8992 | J95: 10488
A97: Capacity Factor
A98: Best Extreme | B98: % | C98: =C99+0.1 -> 0.85 | D98: =D99+0.1 -> 0.85 | E98: =E99+0.1 -> 0.85 | F98: =F99+0.1 -> 0.85 | G98: =G99+0.1 -> 0.85 | I98: =I99+0.15 -> 0.9 | J98: =J99+0.05 -> 0.95 | K98: =K99+0.03 -> 0.14 | L98: =L99+0.05 -> 0.33
A99: Base | B99: % | C99: =C43 -> 0.75 | D99: =D43 -> 0.75 | E99: =E43 -> 0.75 | F99: =F43 -> 0.75 | G99: =G43 -> 0.75 | I99: =I43 -> 0.75 | J99: =J43 -> 0.9 | K99: =K43 -> 0.11 | L99: =L43 -> 0.28
A100: Worst Extreme | B100: % | C100: =C99-0.1 -> 0.65 | D100: =D99-0.1 -> 0.65 | E100: =E99-0.1 -> 0.65 | F100: =F99-0.1 -> 0.65 | G100: =G99-0.1 -> 0.65 | I100: =I99-0.35 -> 0.4 | J100: =J99-0.1 -> 0.8 | K100: =K99-0.03 -> 0.08 | L100: =L99-0.05 -> 0.23
A102: Annual Electricity Production
A103: Best Extreme | B103: kWh/kW | C103: =C98*8760 -> 7446 | D103: 7446 | E103: 7446 | F103: 7446 | G103: 7446 | I103: =I98*8760 -> 7884 | J103: 8322 | K103: 1226.4 | L103: 2890.8
A104: Base | B104: kWh/kW | C104: 6570 | D104: 6570 | E104: 6570 | F104: 6570 | G104: 6570 | I104: 6570 | J104: 7884 | K104: 963.6 | L104: 2452.8
A105: Worst Extreme | B105: kWh/kW | C105: 5694 | D105: 5694 | E105: 5694 | F105: 5694 | G105: 5694 | I105: 3504 | J105: 7008 | K105: 700.8 | L105: 2014.8
A107: Intermittency Charges
A108: Best Extreme | B108: $/kWh | K108: 0.005 | L108: 0.005
A109: Base | B109: $/kWh | K109: 0.01 | L109: 0.01
A110: Worst Extreme | B110: $/kWh | K110: 0.03 | L110: 0.03
A112: Annualized Capital, O&M, and Intermittency Expenses
A113: Best Extreme | B113: $/kW | C113: =-PMT($U$5,C$75,C78)+C83+(C108*C103) -> 307.820835 | D113: 299.3435113 | E113: 470.1859 | F113: 436.7992813 | G113: 512.00449 | H113: 0 | I113: 105.5918275 | J113: 700.8922313 | K113: 414.5446625 | L113: 262.5923025
A114: Base | B114: $/kW | C114: =-PMT($U$5,C$75,C79)+C84+(C109*C104) -> 357.1167488 | D114: 323.9914681 | E114: 544.1297707 | F114: 472.4018857 | G114: 548.9764254 | H114: 0 | I114: 116.546475 | J114: 799.4840588 | K114: 445.4352813 | L114: 310.530245
A115: Worst Extreme | B115: $/kW | C115: =-PMT($U$5,C$75,C80)+C85+(C110*C105) -> 406.4126625 | D115: 348.639425 | E115: 618.0736413 | F115: 508.00449 | G115: 585.9483607 | H115: 0 | I115: 127.5011225 | J115: 898.0758863 | K115: 484.2099 | L115: 384.3101875
A117: Annualized fuel expenses
A118: Best Extreme | B118: $/kW | C118: =(C88/1000000)*C93*C103 -> 138.7564053 | D118: 102.7548 | E118: 141.62292 | F118: 97.896285 | G118: 120.412989 | H118: 0 | I118: 212.678784 | J118: 34.9124544 | K118: 0 | L118: 0
A119: Base | B119: $/kW | C119: =(C89/1000000)*C94*C104 -> 164.6908551 | D119: 129.9546 | E119: 179.11134 | F119: 123.8100075 | G119: 152.2870155 | H119: 0 | I119: 384.00336 | J119: 41.343696 | K119: 0 | L119: 0
A120: Worst Extreme | B120: $/kW | C120: =(C90/1000000)*C95*C105 -> 303.3152589 | D120: 261.924 | E120: 360.9996 | F120: 249.53955 | G120: 306.93507 | H120: 0 | I120: 409.603584 | J120: 44.0999424 | K120: 0 | L120: 0
A122: LCOE
A123: Best Extreme | B123: $/kWh | C123: =(C118+C113)/C103 -> 0.05997545532 | D123: 0.05400192201 | E123: 0.0821661053 | F123: 0.07180977253 | G123: 0.08493385429 | H123: =H124*0.75 -> 0 | I123: =(I118+I113)/I103 -> 0.04036917954 | J123: 0.08841680914 | K123: 0.3380175004 | L123: 0.09083724316
A124: Base | B124: $/kWh | C124: 0.07942277076 | D124: 0.06909376989 | E124: 0.1100823608 | F124: 0.09074762453 | G124: 0.1067372056 | H124: =IF(H21<U33,H21*U34,H21*U35-U36) -> 0 | I124: 0.0761871895 | J124: 0.1066498928 | K124: 0.4622616037 | L124: 0.1266023504
A125: Worst Extreme | B125: $/kWh | C125: 0.1246448756 | D125: 0.1072292633 | E125: 0.1719482335 | F125: 0.1330425079 | G125: 0.1568112804 | H125: =H124*1.25 -> 0 | I125: 0.1532833067 | J125: 0.1344428979 | K125: 0.6909387843 | L125: 0.1907435912
A127: LCOE+T&D
A128: Best Extreme | B128: $/kWh | C128: =C123+$U$6 -> 0.1309754553 | D128: 0.125001922 | E128: 0.1531661053 | F128: 0.1428097725 | G128: 0.1559338543 | H128: =H123 -> 0 | I128: =I123+$U$6 -> 0.1113691795 | J128: 0.1594168091 | K128: 0.4090175004 | L128: 0.1618372432
A129: Base | B129: $/kWh | C129: 0.1504227708 | D129: 0.1400937699 | E129: 0.1810823608 | F129: 0.1617476245 | G129: 0.1777372056 | H129: =H124 -> 0 | I129: 0.1471871895 | J129: 0.1776498928 | K129: 0.5332616037 | L129: 0.1976023504
A130: Worst Extreme | B130: $/kWh | C130: 0.1956448756 | D130: 0.1782292633 | E130: 0.2429482335 | F130: 0.2040425079 | G130: 0.2278112804 | H130: =H125 -> 0 | I130: 0.2242833067 | J130: 0.2054428979 | K130: 0.7619387843 | L130: 0.2617435912
A132: Increase in LCOE from current
A133: Best Extreme | B133: $/kWh | C133: =C128*$U$8+$U$7*(1-$U$8)-$U$7 -> 0.006292636597 | D133: 0.004500576602 | E133: 0.01294983159 | F133: 0.00984293176 | G133: 0.01378015629 | H133: -0.033 | I133: 0.0004107538625 | J133: 0.01482504274 | K133: 0.08970525013 | L133: 0.01555117295
A134: Base | B134: $/kWh | C134: =C129*$U$8+$U$7*(1-$U$8)-$U$7 -> 0.01212683123 | D134: 0.009028130966 | E134: 0.02132470825 | F134: 0.01552428736 | G134: 0.02032116168 | H134: -0.033 | I134: 0.01115615685 | J134: 0.02029496784 | K134: 0.1269784811 | L134: 0.02628070511
A135: Worst Extreme | B135: $/kWh | C135: =C130*$U$8+$U$7*(1-$U$8)-$U$7 -> 0.02569346267 | D135: 0.02046877898 | E135: 0.03988447004 | F135: 0.02821275237 | G135: 0.03534338412 | H135: -0.033 | I135: 0.034284992 | J135: 0.02863286938 | K135: 0.1955816353 | L135: 0.04552307736

Sheet Saved Portfolios (hidden)
B1: CANNED PORTFOLIOS ***Scenarios do not include NG backup | C1: Biomass-and-Coal | D1: Coal Option 1: No CO2 capture | E1: Coal Option 2: CO2 Capture | F1: Coal-to-Gas Option 1: No CO2 capture | G1: Coal-to-Gas Option 2: CO2 Capture | H1: Energy Efficiency | I1: Natural Gas | J1: Nuclear | K1: Solar Cell | L1: Wind | M1: Natural Gas Backup (Solar) | N1: NG Backup Wind | O1: Total | P1: Chosen
A3: 1 | B3: Least Expensive, full portfolio | C3: 0 | D3: 2 | E3: 0 | F3: 0 | G3: 2 | H3: 18 | I3: 0 | J3: 2 | K3: 0 | L3: 11 | P3: 7
A4: 2 | B4: full portfolio, no PC | C4: 0 | D4: 0 | E4: 0 | F4: 0 | G4: 3 | H4: 18 | I4: 0 | J4: 3 | K4: 0 | L4: 10
A5: 3 | B5: Zero CO2 with EE, least land, least water, least health cost | C5: 0 | D5: 0 | E5: 0 | F5: 0 | G5: 0 | H5: 22 | I5: 0 | J5: 7 | K5: 0 | L5: 0
A6: 4 | B6: Least CO2 emissions with no Nuclear | C6: 0 | D6: 0 | E6: 0 | F6: 0 | G6: 10 | H6: 20 | I6: 0 | J6: 0 | K6: 0 | L6: 0
A7: 5 | B7: Least CO2 (no nuc, no coal), least water, Maximize wind and EE | C7: 0 | D7: 0 | E7: 0 | F7: 0 | G7: 0 | H7: 23 | I7: 0 | J7: 0 | K7: 0 | L7: 30
A8: 6 | B8: Limited Portfolio | C8: 0 | D8: 0 | E8: 0 | F8: 0 | G8: 0 | H8: 24 | I8: 0 | J8: 0 | K8: 25 | L8: 17
A9: 7 | B9: semi-limited, no CCS | C9: 0 | D9: 2 | E9: 0 | F9: 0 | G9: 0 | H9: 18 | I9: 0 | J9: 3 | K9: 0 | L9: 13
A10: 8 | B10: semi-limited, no nuc | C10: 0 | D10: 1 | E10: 0 | F10: 0 | G10: 5 | H10: 18 | I10: 0 | J10: 0 | K10: 0 | L10: 13
B13: SAVED PORTFOLIOS
B14: These portfolios do not include NG backup
M15: =('Input-Output'!$Z$5*'Input-Output'!$K$42*8760*K15/1000000) -> 0 | N15: =('Input-Output'!$AA$5*'Input-Output'!$L$42*8760*L15/1000000) -> 0 | O15: =SUM(M15:N15) -> 0
M16: =('Input-Output'!$Z$5*'Input-Output'!$K$42*8760*K16/1000000) -> 0 | N16: =('Input-Output'!$AA$5*'Input-Output'!$L$42*8760*L16/1000000) -> 0 | O16: =SUM(M16:N16) -> 0 | P16: 2
M17: =('Input-Output'!$Z$5*'Input-Output'!$K$42*8760*K17/1000000) -> 0 | N17: =('Input-Output'!$AA$5*'Input-Output'!$L$42*8760*L17/1000000) -> 0 | O17: 0
B24: These portfolios are same as above, but include NG backup and are in percentages
B25: =IF(B15 = "", "",B15) ->  | C25: =(C15*'Input-Output'!C$44)/'Input-Output'!$U$4 -> 0 | D25: =(D15*'Input-Output'!D$44)/'Input-Output'!$U$4 -> 0 | E25: =(E15*'Input-Output'!E$44)/'Input-Output'!$U$4 -> 0 | F25: =(F15*'Input-Output'!F$44)/'Input-Output'!$U$4 -> 0 | G25: =(G15*'Input-Output'!G$44)/'Input-Output'!$U$4 -> 0 | H25: =(H15*'Input-Output'!H$44)/'Input-Output'!$U$4 -> 0 | I25: =((I15*'Input-Output'!I$44)+O15)/'Input-Output'!$U$4 -> 0 | J25: =(J15*'Input-Output'!J$44)/'Input-Output'!$U$4 -> 0 | K25: =(K15*'Input-Output'!K$44)/'Input-Output'!$U$4 -> 0 | L25: =(L15*'Input-Output'!L$44)/'Input-Output'!$U$4 -> 0
B26: =IF(B16 = "", "",B16) ->  | C26: =(C16*'Input-Output'!C$44)/'Input-Output'!$U$4 -> 0 | D26: =(D16*'Input-Output'!D$44)/'Input-Output'!$U$4 -> 0 | E26: =(E16*'Input-Output'!E$44)/'Input-Output'!$U$4 -> 0 | F26: =(F16*'Input-Output'!F$44)/'Input-Output'!$U$4 -> 0 | G26: =(G16*'Input-Output'!G$44)/'Input-Output'!$U$4 -> 0 | H26: =(H16*'Input-Output'!H$44)/'Input-Output'!$U$4 -> 0 | I26: =((I16*'Input-Output'!I$44)+O16)/'Input-Output'!$U$4 -> 0 | J26: =(J16*'Input-Output'!J$44)/'Input-Output'!$U$4 -> 0 | K26: =(K16*'Input-Output'!K$44)/'Input-Output'!$U$4 -> 0 | L26: =(L16*'Input-Output'!L$44)/'Input-Output'!$U$4 -> 0
C27: =(C17*'Input-Output'!C$44)/'Input-Output'!$U$4 -> 0 | D27: =(D17*'Input-Output'!D$44)/'Input-Output'!$U$4 -> 0 | E27: =(E17*'Input-Output'!E$44)/'Input-Output'!$U$4 -> 0 | F27: =(F17*'Input-Output'!F$44)/'Input-Output'!$U$4 -> 0 | G27: =(G17*'Input-Output'!G$44)/'Input-Output'!$U$4 -> 0 | H27: =(H17*'Input-Output'!H$44)/'Input-Output'!$U$4 -> 0 | I27: =((I17*'Input-Output'!I$44)+O17)/'Input-Output'!$U$4 -> 0 | J27: =(J17*'Input-Output'!J$44)/'Input-Output'!$U$4 -> 0 | K27: =(K17*'Input-Output'!K$44)/'Input-Output'!$U$4 -> 0 | L27: =(L17*'Input-Output'!L$44)/'Input-Output'!$U$4 -> 0

Sheet Compare
AF1: Values
B2: Your Combinations (Percent of Each Power Plant Type) | AE2: Electricity Produced | AF2: CO2 Released | AG2: Cost | AH2: Water Use | AI2: Land Use | AJ2: Health Costs
D3: =AD3 ->  | E3: =AD4 ->  | F3: =AD5 ->  | AD3: =IF('Saved Portfolios'!B15="","",'Saved Portfolios'!B15) -> 
B4: Biomass-and-Coal | D4: ='Saved Portfolios'!$C$25 -> 0 | E4: ='Saved Portfolios'!$C$26 -> 0 | F4: ='Saved Portfolios'!$C$27 -> 0 | AD4: =IF('Saved Portfolios'!B16="","",'Saved Portfolios'!B16) -> 
B5: Coal: CO2 released to air | D5: ='Saved Portfolios'!$D$25 -> 0 | E5: ='Saved Portfolios'!$D$26 -> 0 | F5: ='Saved Portfolios'!$D$27 -> 0 | AD5: =IF('Saved Portfolios'!B17="","",'Saved Portfolios'!B17) -> 
B6: Coal: CO2 captured | D6: ='Saved Portfolios'!$E$25 -> 0 | E6: ='Saved Portfolios'!$E$26 -> 0 | F6: ='Saved Portfolios'!$E$27 -> 0 | AD6: =IF('Saved Portfolios'!B18="","",'Saved Portfolios'!B18) -> 
B7: Coal-to-Gas: CO2 released to air | D7: ='Saved Portfolios'!$F$25 -> 0 | E7: ='Saved Portfolios'!$F$26 -> 0 | F7: ='Saved Portfolios'!$F$27 -> 0 | AD7: =IF('Saved Portfolios'!B19="","",'Saved Portfolios'!B19) -> 
B8: Coal-to-Gas: CO2 captured | D8: ='Saved Portfolios'!$G$25 -> 0 | E8: ='Saved Portfolios'!$G$26 -> 0 | F8: ='Saved Portfolios'!$G$27 -> 0 | AD8: =IF('Saved Portfolios'!B20="","",'Saved Portfolios'!B20) -> 
B9: Energy Efficiency | D9: ='Saved Portfolios'!$H$25 -> 0 | E9: ='Saved Portfolios'!$H$26 -> 0 | F9: ='Saved Portfolios'!$H$27 -> 0 | AD9: =IF('Saved Portfolios'!B21="","",'Saved Portfolios'!B21) -> 
B10: Natural Gas | D10: ='Saved Portfolios'!$I$25 -> 0 | E10: ='Saved Portfolios'!$I$26 -> 0 | F10: ='Saved Portfolios'!$I$27 -> 0 | AD10: =IF('Saved Portfolios'!B22="","",'Saved Portfolios'!B22) -> 
B11: Nuclear | D11: ='Saved Portfolios'!$J$25 -> 0 | E11: ='Saved Portfolios'!$J$26 -> 0 | F11: ='Saved Portfolios'!$J$27 -> 0
B12: Solar Cell | D12: ='Saved Portfolios'!$K$25 -> 0 | E12: ='Saved Portfolios'!$K$26 -> 0 | F12: ='Saved Portfolios'!$K$27 -> 0
B13: Wind | D13: ='Saved Portfolios'!$L$25 -> 0 | E13: ='Saved Portfolios'!$L$26 -> 0 | F13: ='Saved Portfolios'!$L$27 -> 0 | AD13: current values | AE13: ='Input-Output'!N15 -> 0 | AF13: ='Input-Output'!N24 -> 0 | AG13: ='Input-Output'!N31 -> 0 | AH13: ='Input-Output'!N26 -> 0 | AI13: ='Input-Output'!N25 -> 0 | AJ13: ='Input-Output'!N27 -> 0

Sheet Warnings (hidden)
A1: Warnings | B1: 1
